bitfinex/quotes_ETHUSD_20260310
["timestamp","ask_amount","ask_price","bid_price","bid_amount"]
[1773171542228,0.46826329,2032.8,2032.1,1.6271882]
[1773171542742,0.46926329,2033.0,2032.2,1.72438207]
[1773171542931,0.46926329,2033.0,2032.2,1.23019387]
[1773171543248,0.46926329,2033.0,2032.3,0.4941882]
[1773171543935,0.46926329,2033.0,2032.4,1.134]
[1773171544338,0.46926329,2033.0,2032.4,1.6281882]
[1773171544913,0.46926329,2033.0,2032.5,1.2300123]
[1773171545114,0.46926329,2033.0,2032.5,2.3650123]
[1773171545542,0.001,2033.0,2032.5,2.8592005]
[1773171545722,0.001,2033.0,2032.6,0.4941882]
[1773171546050,0.46926329,2033.4,2032.8,0.4941882]
[1773171546253,0.46826329,2033.3,2032.5,1.2300123]
[1773171546449,0.46826329,2033.3,2032.6,1.6301882]
[1773171546637,0.001,2033.4,2032.9,0.4941882]
[1773171546838,0.001,2033.4,2033.0,1.136]
[1773171547022,0.001,2033.4,2033.1,1.2296493]
[1773171547735,0.001,2033.4,2033.0,2.36567643]
[1773171548225,0.001,2033.4,2033.0,1.22967643]
[1773171548426,0.001,2033.4,2033.1,1.137]
[1773171548926,0.46826329,2033.2,2032.8,1.137]
[1773171549435,0.46826329,2033.2,2032.9,1.137]
[1773171550126,0.46826329,2033.2,2032.7,1.138]
[1773171551032,0.46826329,2033.0,2032.5,1.2300123]
[1773171551553,0.46826329,2033.0,2032.5,2.3680123]
[1773171552132,0.46826329,2033.0,2032.6,1.139]
[1773171552370,0.46826329,2033.0,2032.7,1.139]
[1773171552664,0.46826329,2033.0,2032.1,1.23025441]
[1773171552961,0.46826329,2033.0,2032.2,1.139]
[1773171553359,0.46826329,2032.8,2032.2,2.36913546]
[1773171553527,0.46826329,2032.8,2032.0,4.92111388]
[1773171553726,0.46826329,2032.8,2032.2,1.139]
[1773171554283,0.46826329,2032.8,2032.3,0.0011]
[1773171555374,0.46826329,2032.6,2032.3,0.0011]
[1773171557058,1.22989127,2032.7,2032.3,0.0011]
[1773171557259,1.69811928,2032.8,2032.3,0.0011]
[1773171557553,4.91911091,2032.9,2032.3,0.0011]
[1773171557554,1.22981969,2032.9,2032.3,0.0011]
[1773171558170,1.69900686,2033.0,2032.3,0.0011]
[1773171558367,0.46926329,2033.0,2032.3,0.0011]
[1773171558868,0.46826329,2032.9,2032.3,0.0011]
[1773171560281,1.22983077,2032.8,2032.3,0.0011]
[1773171560798,1.69803776,2032.9,2032.3,0.49116668]
[1773171561686,1.69803776,2032.9,2032.3,0.0011]
[1773171561850,0.48194689,2032.8,2032.3,0.0011]
[1773171562052,0.48194689,2032.8,2032.0,1.23138169]
[1773171562372,0.48194689,2032.6,2032.1,2.37221468]
[1773171562573,0.48194689,2032.6,2032.0,0.0011]
[1773171562887,0.48194689,2032.6,2032.1,1.142]
[1773171564362,0.48194689,2032.6,2032.2,1.23019387]
[1773171564566,0.48194689,2032.8,2032.2,1.23019387]
[1773171565154,0.48194689,2032.8,2032.0,2.37441354]
[1773171566583,0.48194689,2032.6,2032.0,2.37440468]
[1773171566957,0.48194689,2032.6,2032.2,0.0011]
[1773171569173,1.2300123,2032.5,2032.2,0.0011]
[1773171569488,1.2300123,2032.5,2032.0,0.0011]
[1773171569489,0.48194689,2032.4,2032.0,0.0011]
[1773171570391,0.48194689,2032.4,2031.7,0.0011]
[1773171571092,0.48194689,2032.2,2031.7,0.0011]
[1773171571468,0.48194689,2032.1,2031.7,0.0011]
[1773171573198,0.48194689,2032.4,2031.7,0.0011]
[1773171573620,0.48194689,2032.4,2031.8,1.144]
[1773171573821,1.22995397,2032.6,2031.9,0.49006668]
[1773171573995,1.71190086,2032.6,2031.8,1.144]
[1773171575531,1.71190086,2032.6,2031.9,1.72044219]
[1773171576623,0.48194689,2032.6,2031.9,1.72044219]
[1773171576838,1.71190438,2032.6,2031.9,1.72044219]
[1773171577341,4.92042368,2032.8,2031.9,1.23037551]
[1773171577520,0.48294689,2032.8,2032.0,0.49006668]
[1773171578339,0.001,2032.8,2032.0,0.49006668]
[1773171579139,0.001,2032.8,2032.2,0.49006668]
[1773171579524,0.001,2032.8,2032.3,1.72020002]
[1773171579711,0.001,2032.8,2032.4,1.63406668]
[1773171580745,0.001,2033.0,2032.5,0.49006668]
[1773171581754,0.001,2033.0,2032.6,1.22995178]
[1773171581956,0.001,2033.0,2032.7,1.144]
[1773171582455,1.71246278,2033.4,2032.7,1.63406668]
[1773171582854,0.001,2033.4,2032.7,1.63406668]
[1773171583147,0.001,2033.4,2032.8,0.49006668]
[1773171583849,0.001,2033.4,2033.0,0.49006668]
[1773171584235,4.24505702,2034.1,2033.3,0.49006668]
[1773171584427,0.48194689,2034.1,2033.4,1.145]
[1773171584637,1.71100158,2034.1,2033.4,1.145]
[1773171584849,1.2290316,2034.2,2033.4,1.63506668]
[1773171585139,1.2290316,2034.2,2033.5,0.49006668]
[1773171585339,1.71087105,2034.3,2033.5,0.49006668]
[1773171585739,0.48194689,2034.2,2033.2,2.9099497]
[1773171585951,1.22904478,2034.1,2033.6,1.145]
[1773171586461,1.71098083,2034.2,2033.6,1.145]
[1773171586770,0.45498147,2034.1,2033.6,1.145]
[1773171586922,0.45498147,2034.1,2033.5,1.145]
[1773171588026,0.45498147,2034.1,2033.6,1.22934697]
[1773171588249,1.68403526,2034.1,2033.6,1.22934697]
[1773171588454,1.2290064,2034.2,2033.5,0.46764252]
[1773171588842,1.68386512,2034.4,2033.5,0.46764252]
[1773171589047,0.45498147,2034.3,2033.5,0.46764252]
[1773171589257,0.45498147,2034.3,2033.5,1.145]
[1773171589956,0.49711634,2034.1,2033.5,1.145]
[1773171590158,0.49711634,2034.1,2033.5,2.37440665]
[1773171590528,0.49711634,2034.1,2033.5,2.37440206]
[1773171590831,0.49711634,2034.1,2033.5,2.37440239]
[1773171592171,0.49711634,2033.9,2033.2,1.22958464]
[1773171592326,0.49711634,2033.9,2033.1,1.68338736]
[1773171592527,0.49811634,2033.9,2033.0,4.91879463]
[1773171592753,0.49711634,2033.7,2032.9,1.145]
[1773171593146,0.49711634,2033.7,2033.2,0.0011]
[1773171594457,0.49711634,2033.5,2033.2,0.0011]
[1773171594956,1.22929288,2033.7,2033.2,0.0011]
[1773171595278,1.22927628,2033.8,2033.2,0.0011]
[1773171596050,0.49711634,2033.7,2033.2,0.0011]
[1773171596538,1.22934697,2033.6,2033.2,0.0011]
[1773171596739,0.001,2033.9,2033.2,0.45487705]
[1773171596740,0.49811634,2033.9,2033.2,0.45487705]
[1773171596926,1.72728215,2033.9,2033.2,0.45487705]
[1773171597247,1.23016581,2033.9,2033.2,0.45487705]
[1773171597760,0.001,2033.9,2033.3,2.41988302]
[1773171597960,0.001,2033.9,2033.4,0.45377705]
[1773171598257,1.23017738,2033.9,2033.2,1.59987705]
[1773171598448,0.001,2033.9,2033.2,2.8294241]
[1773171598643,0.001,2033.9,2033.3,1.145]
[1773171598850,0.49811634,2033.9,2033.3,1.145]
[1773171599255,0.001,2033.9,2033.3,1.59877705]
[1773171599434,0.001,2033.9,2033.3,1.145]
[1773171599435,0.49811634,2033.9,2033.3,1.145]
[1773171601164,1.22922607,2033.8,2033.3,2.37452091]
[1773171602356,0.001,2033.9,2033.4,0.45377705]
[1773171602536,3.74491105,2034.8,2033.4,0.45377705]
[1773171602537,0.33807385,2035.3,2033.4,0.45377705]
[1773171602885,0.49711634,2035.2,2034.2,0.45377705]
[1773171603168,0.33807385,2035.3,2034.3,0.45377705]
[1773171603332,1.56639552,2035.3,2034.3,0.45377705]
[1773171603531,1.56639571,2035.3,2034.3,0.45377705]
[1773171603941,2.06351205,2035.3,2034.4,1.145]
[1773171604143,0.33807385,2035.3,2034.5,0.45377705]
[1773171604663,1.22819949,2035.5,2034.5,0.45377705]
[1773171605059,1.22819949,2035.5,2034.6,1.22874275]
[1773171605565,0.001,2034.8,2034.6,1.22874275]
[1773171605863,0.001,2034.8,2034.6,1.6825198]
[1773171606658,1.22819949,2035.5,2034.6,1.6825198]
[1773171606855,1.22819949,2035.5,2034.7,0.45377705]
[1773171607061,5.40967664,2035.6,2034.8,1.22862197]
[1773171607062,0.49711634,2035.6,2034.8,1.22862197]
[1773171607447,1.72527689,2035.6,2034.8,1.22862197]
[1773171607642,3.73101058,2035.8,2034.9,0.45377705]
[1773171607976,0.49711634,2035.7,2034.8,1.22862197]
[1773171608974,0.49711634,2035.7,2034.8,1.68239902]
[1773171609466,7.6552487,2036.2,2035.0,2.87201068]
[1773171609467,1.72506507,2036.0,2035.0,2.87201068]
[1773171609672,1.72506507,2036.0,2035.0,0.45377705]
[1773171610667,1.72506507,2036.0,2034.8,1.22862197]
[1773171610668,0.49711634,2035.9,2034.8,1.22862197]
[1773171611066,0.49711634,2035.7,2034.8,1.22862197]
[1773171611263,0.49711634,2035.7,2034.8,1.68239902]
[1773171611770,0.49711634,2035.7,2034.9,0.45377705]
[1773171612271,0.49711634,2035.7,2034.8,1.22862197]
[1773171612479,0.49711634,2035.7,2034.7,4.91448791]
[1773171612480,0.49711634,2035.7,2034.7,1.22863748]
[1773171613081,0.49711634,2035.3,2033.7,0.0011]
[1773171613364,1.22813912,2035.6,2033.7,0.0011]
[1773171613365,0.49711634,2034.7,2033.8,1.22922607]
[1773171615261,1.72585909,2034.6,2033.8,1.22922607]
[1773171615489,0.49711634,2034.4,2033.7,0.0011]
[1773171615690,0.49711634,2034.2,2033.7,0.0011]
[1773171617388,1.72614476,2034.2,2033.7,0.0011]
[1773171617950,1.72614476,2034.2,2034.0,0.0011]
[1773171618885,1.72614476,2034.2,2033.8,0.0011]
[1773171619469,0.49711634,2034.2,2033.8,0.0011]
[1773171619780,1.72611613,2034.2,2033.8,0.0011]
[1773171620099,1.72610349,2034.2,2033.8,0.0011]
[1773171622389,0.4856917,2034.1,2033.8,0.0011]
[1773171622614,0.4856917,2034.1,2033.5,0.0011]
[1773171623678,1.71476187,2034.1,2033.5,0.0011]
[1773171625769,1.22907017,2034.1,2033.5,1.23050742]
[1773171628798,1.22907017,2034.1,2033.5,0.0011]
[1773171629294,1.71476187,2034.1,2033.5,0.0011]
[1773171629713,0.4856917,2034.4,2033.6,0.47131903]
[1773171630013,0.001,2034.8,2033.8,0.47131903]
[1773171630221,0.001,2034.8,2034.0,0.47131903]
[1773171630581,0.4866917,2034.8,2034.0,0.47131903]
[1773171630777,0.001,2034.8,2034.2,0.47131903]
[1773171632394,0.001,2034.8,2033.8,7.33489619]
[1773171632718,0.4856917,2034.2,2033.7,0.0011]
[1773171632922,0.4856917,2033.9,2033.2,0.0011]
[1773171633160,0.4856917,2033.4,2032.1,3.12351391]
[1773171633418,0.4856917,2033.1,2031.9,1.23146202]
[1773171633578,0.4856917,2032.9,2031.9,1.23146202]
[1773171633913,0.4856917,2033.0,2031.9,1.23146202]
[1773171634119,0.4856917,2032.5,2031.9,0.0011]
[1773171634280,0.4856917,2032.8,2031.9,1.23147206]
[1773171634482,0.4856917,2032.6,2031.9,0.0011]
[1773171634912,0.4856917,2032.4,2031.9,0.0011]
[1773171635207,2.41823363,2032.3,2031.7,0.0011]
[1773171635407,0.4856917,2032.2,2031.7,0.0011]
[1773171635609,1.183,2032.4,2031.7,0.0011]
[1773171635815,0.4856917,2032.3,2031.7,0.0011]
[1773171636214,0.4856917,2032.7,2031.7,0.47241903]
[1773171636412,1.184,2033.0,2031.9,1.23037551]
[1773171636613,1.6696917,2033.0,2031.9,1.70169454]
[1773171636912,0.4856917,2032.8,2031.7,1.23155417]
[1773171637321,0.4856917,2033.1,2031.9,0.47131903]
[1773171637616,0.4856917,2032.2,2031.4,0.0011]
[1773171638017,0.4856917,2032.2,2031.4,1.23177353]
[1773171638392,0.4856917,2032.2,2031.4,0.0011]
[1773171638685,0.4856917,2032.6,2031.4,0.47241903]
[1773171638891,1.22987378,2032.8,2031.6,0.47131903]
[1773171639300,1.71549665,2032.9,2031.6,2.41823363]
[1773171639616,1.71549665,2032.9,2031.8,0.47131903]
[1773171640124,2.41968138,2033.1,2031.8,0.47131903]
[1773171640298,5.43103081,2033.3,2032.1,0.47131903]
[1773171640644,3.71580425,2033.3,2032.3,0.47131903]
[1773171640796,3.55747193,2033.3,2032.8,0.47131903]
[1773171640997,3.31966621,2033.3,2032.8,0.47131903]
[1773171641199,1e-08,2033.3,2032.8,0.47131903]
[1773171641403,3.73370671,2034.0,2032.9,0.47131903]
[1773171641714,2.50186834,2033.9,2032.9,0.47131903]
[1773171642119,5.40042188,2034.7,2033.4,2.88955266]
[1773171642294,0.4856917,2034.6,2033.0,0.62080402]
[1773171642617,1.22892395,2034.3,2033.1,1.70096833]
[1773171642820,0.001,2033.2,2033.1,1.70096833]
[1773171643020,1.71533669,2034.8,2033.6,0.47131903]
[1773171643187,1.71533669,2034.8,2033.3,0.14948499]
[1773171643188,0.001,2034.8,2033.9,0.47131903]
[1773171643391,0.001,2034.8,2034.4,2.41823363]
[1773171643717,0.001,2034.8,2033.7,0.14948499]
[1773171643718,1.22962818,2034.8,2033.8,0.47131903]
[1773171643920,0.001,2034.8,2033.8,0.47131903]
[1773171644238,0.001,2034.8,2033.9,0.14948499]
[1773171644387,0.001,2034.8,2034.3,1.22892395]
[1773171644922,0.33174253,2035.3,2034.5,0.47131903]
[1773171645299,0.33174253,2035.3,2034.7,2.88955266]
[1773171645511,0.33174253,2035.3,2034.4,0.62080402]
[1773171645894,1.56006479,2035.3,2034.4,0.47131903]
[1773171646104,0.33174253,2035.3,2034.4,0.47131903]
[1773171646316,0.4856917,2036.1,2034.6,2.88955266]
[1773171646485,1.71364985,2035.9,2034.7,1.22868236]
[1773171646904,1.71364985,2035.9,2034.7,1.73045795]
[1773171647100,1.71364985,2035.9,2034.7,1.22868236]
[1773171647101,2.91638393,2035.8,2034.7,1.22868236]
[1773171647440,2.91638393,2035.8,2034.1,4.91614486]
[1773171647441,0.4981503,2035.4,2034.1,4.91614486]
[1773171647938,2.91638393,2035.8,2034.3,0.50177559]
[1773171648492,1.22807879,2035.7,2034.4,1.73063913]
[1773171648692,1.22807879,2035.7,2034.6,2.41823363]
[1773171649094,1.22807879,2035.7,2034.4,1.73063913]
[1773171649290,1.72620935,2035.8,2034.6,2.41823363]
[1773171649502,1.72620935,2035.8,2034.6,2.92284638]
[1773171649830,0.88799774,2036.8,2034.8,0.50461275]
[1773171649999,0.5090445,2037.3,2036.3,2.41823363]
[1773171650201,0.5090445,2037.7,2036.4,2.41823363]
[1773171650531,1.22645211,2038.4,2037.3,2.41823363]
[1773171650706,1.22645211,2038.4,2037.2,0.14948499]
[1773171651131,1.22645211,2038.4,2037.1,1.22723479]
[1773171651132,2.92727813,2038.2,2037.1,1.22723479]
[1773171651337,4.90580847,2038.7,2037.1,1.22723479]
[1773171651338,1.22615135,2038.9,2037.4,0.50461275]
[1773171651553,1.22615135,2038.9,2037.4,2.92284638]
[1773171651834,1.22615135,2038.9,2037.7,2.41823363]
[1773171652234,0.33207451,2039.0,2038.1,2.41823363]
[1773171652411,1.2260704,2039.1,2037.8,3.07233137]
[1773171652602,1.22585074,2039.4,2038.0,0.14948499]
[1773171652798,0.5090445,2039.1,2037.9,1.22675303]
[1773171653196,2.92727813,2039.3,2037.9,1.73136578]
[1773171653433,0.5090445,2039.3,2037.9,1.22675303]
[1773171653635,0.5090445,2039.3,2037.8,1.2267726]
[1773171653837,0.1596903,2039.7,2038.7,2.40680499]
[1773171654035,1.38536311,2039.7,2038.5,0.14948499]
[1773171654201,1.38536311,2039.7,2038.4,0.50461275]
[1773171654530,1.38536311,2039.7,2038.5,1.22639195]
[1773171655215,0.1596903,2039.7,2038.6,2.55628998]
[1773171655600,3.25839634,2040.4,2039.0,0.14948499]
[1773171655808,0.5090445,2040.3,2038.9,1.176]
[1773171656125,3.9746085,2040.4,2039.0,0.65409774]
[1773171656327,0.5090445,2040.3,2038.6,2.40680499]
[1773171656632,2.74935184,2040.4,2039.2,2.40680499]
[1773171656927,3.97460516,2040.4,2039.0,0.14948499]
[1773171657130,0.5090445,2040.3,2038.9,3.63295634]
[1773171657332,0.5090445,2040.3,2038.9,1.22615135]
[1773171657631,0.5090445,2040.2,2038.6,2.55628998]
[1773171657838,1.22520987,2040.5,2039.1,0.50461275]
[1773171658009,1.22520987,2040.5,2038.7,0.50461275]
[1773171658010,0.5090445,2040.3,2038.7,0.50461275]
[1773171658199,0.5090445,2040.3,2038.8,0.14948499]
[1773171658715,1.73441456,2040.2,2038.9,1.22615135]
[1773171658917,0.5090445,2040.0,2038.5,4.90532718]
[1773171659137,0.5090445,2039.7,2038.0,1.22669283]
[1773171659446,0.5090445,2039.7,2038.0,1.73130558]
[1773171659749,2.40605092,2039.4,2038.0,1.73130558]
[1773171660060,0.0090445,2039.7,2038.0,1.73130558]
[1773171660271,0.0745805,2039.7,2038.0,1.22669283]
[1773171660555,3.2123638,2039.9,2038.3,2.40605092]
[1773171660853,1.22561035,2039.8,2038.4,1.22645211]
[1773171661032,1.22561035,2039.8,2038.4,1.73106486]
[1773171661208,1.22537006,2040.2,2038.9,0.14948499]
[1773171661654,1.22537006,2040.2,2038.8,0.57725584]
[1773171661821,0.33201008,2040.6,2039.0,0.57725584]
[1773171662024,1.2251899,2040.5,2039.0,0.57725584]
[1773171662224,2.40605092,2040.3,2039.0,0.57725584]
[1773171662746,1.35772243,2040.2,2038.6,1.73094454]
[1773171662956,1.88501541,2039.9,2038.6,0.50461275]
[1773171663108,4.29106633,2039.9,2038.6,0.50461275]
[1773171663549,2.40605092,2039.2,2038.2,0.50461275]
[1773171663852,1.223,2039.5,2038.2,0.50461275]
[1773171664148,2.60644305,2039.8,2038.2,0.50461275]
[1773171664356,1.224,2039.6,2038.2,0.50461275]
[1773171664523,2.40605092,2039.2,2038.2,0.50461275]
[1773171664704,1.22603109,2039.1,2038.2,1.73116898]
[1773171664909,1.22603109,2039.1,2038.2,0.50461275]
[1773171665104,1.22603109,2039.1,2038.2,1.73118513]
[1773171665304,4.90269075,2039.7,2038.3,0.50461275]
[1773171666356,1.226,2039.6,2038.3,0.50461275]
[1773171666553,4.90269075,2039.7,2038.3,0.50461275]
[1773171666847,1.226,2039.7,2038.5,0.50461275]
[1773171667067,1.176,2039.7,2038.5,0.50461275]
[1773171667426,1.40498898,2039.7,2038.4,1.22645211]
[1773171667732,0.22898898,2039.6,2038.2,4.90613791]
[1773171668138,1.227,2039.5,2038.2,5.41075066]
[1773171668955,1.22585074,2039.4,2038.3,0.50461275]
[1773171669452,1.22585074,2039.4,2037.9,0.50461275]
[1773171669622,2.45385074,2039.4,2037.9,0.50461275]
[1773171670023,1.22585074,2039.4,2037.9,0.50461275]
[1773171670952,2.45485074,2039.4,2038.1,0.50461275]
[1773171671250,1.22585074,2039.4,2038.1,0.50461275]
[1773171671433,2.45485074,2039.4,2038.1,0.50461275]
[1773171671829,2.69587333,2039.4,2038.1,0.50461275]
[1773171672030,2.40605092,2039.2,2037.9,1.22671689]
[1773171672354,2.64707351,2039.2,2037.9,1.22671689]
[1773171672553,2.64707351,2039.2,2037.9,1.73132964]
[1773171672755,1.229,2039.1,2037.9,1.73132964]
[1773171672961,1.22609122,2039.0,2037.9,1.73132964]
[1773171673324,2.45591085,2039.3,2038.0,0.50461275]
[1773171673520,1.22583966,2039.5,2038.0,0.50461275]
[1773171673855,1.22583966,2039.5,2037.9,3.63276781]
[1773171673856,2.45583966,2039.5,2038.2,0.50461275]
[1773171674034,1.22583966,2039.5,2038.2,0.50461275]
[1773171674424,1.2267162,2039.7,2038.3,0.50461275]
[1773171675143,1.2267162,2039.7,2038.4,1.22645211]
[1773171675346,1.47348657,2039.7,2038.5,0.50461275]
[1773171675536,1.23,2039.6,2038.5,0.50461275]
[1773171676131,1.2267162,2039.7,2038.5,0.50461275]
[1773171676334,1.23,2039.6,2038.5,0.50461275]
[1773171677057,3.83372104,2039.6,2038.4,1.22645211]
[1773171677456,0.19767012,2039.4,2038.3,1.22651228]
[1773171678058,0.19767012,2039.4,2038.2,0.50461275]
[1773171678261,0.19767012,2039.4,2038.0,4.90661888]
[1773171678262,0.19939676,2039.1,2037.9,1.22670638]
[1773171678461,0.065536,2039.4,2038.0,0.50461275]
[1773171678757,1.23,2039.1,2038.0,0.50461275]
[1773171679154,1.23,2039.1,2038.1,0.0011]
[1773171679461,2.40605092,2038.9,2038.1,0.0011]
[1773171679662,1.23,2038.8,2037.9,0.0011]
[1773171680545,1.23,2038.8,2037.9,1.22784797]
[1773171680949,1.231,2038.7,2037.9,1.22784797]
[1773171681153,1.22609122,2039.0,2038.0,0.55764696]
[1773171681461,4.96854878,2039.6,2038.0,0.55764696]
[1773171681462,6.13430734,2039.5,2038.2,0.55764696]
[1773171681662,7.30935826,2039.5,2038.2,0.55764696]
[1773171681959,1.231,2039.4,2038.2,0.55764696]
[1773171682466,6.13430734,2039.5,2038.2,0.55764696]
[1773171683670,1.76741082,2039.4,2038.3,1.22651228]
[1773171683854,0.53741082,2039.3,2038.3,1.22651228]
[1773171684362,0.53741082,2039.3,2038.0,1.22663264]
[1773171684763,0.53741082,2039.1,2038.0,1.22663264]
[1773171684968,7.37489426,2039.5,2037.9,1.22781982]
[1773171684969,0.53741082,2038.9,2037.9,1.22781982]
[1773171685329,0.53741082,2038.8,2037.9,1.2278519]
[1773171685535,1.22627164,2038.7,2037.9,0.0011]
[1773171686153,1.76368246,2038.7,2037.9,0.0011]
[1773171686349,0.53741082,2038.6,2037.9,0.0011]
[1773171686769,0.53741082,2038.5,2037.6,1.22803364]
[1773171687965,1.22645211,2038.4,2037.6,0.0011]
[1773171688272,2.45642246,2038.5,2037.6,0.0011]
[1773171688473,0.53741082,2038.4,2037.6,0.0011]
[1773171689479,1.23,2038.3,2037.6,0.0011]
[1773171690348,1.22657246,2038.2,2037.6,0.0011]
[1773171690678,0.53741082,2038.0,2036.9,1.22735529]
[1773171691462,0.53741082,2038.0,2037.8,0.0011]
[1773171691677,0.53741082,2038.0,2036.6,1.22753608]
[1773171691841,0.53741082,2037.8,2036.6,1.22753608]
[1773171692051,0.53741082,2037.8,2037.3,0.0011]
[1773171692585,1.22687343,2037.7,2037.3,0.0011]
[1773171692815,1.22685709,2037.8,2037.3,0.0011]
[1773171693112,2.99302457,2038.2,2037.3,0.0011]
[1773171694679,0.53741082,2038.1,2037.3,0.0011]
[1773171695362,1.229,2038.0,2037.3,0.0011]
[1773171695677,0.53741082,2037.9,2037.3,0.0011]
[1773171696783,1.22681322,2037.8,2037.3,0.0011]
[1773171697682,1.22651228,2038.3,2037.3,0.55874696]
[1773171697890,2.45551228,2038.3,2037.3,0.55874696]
[1773171698092,1.22651228,2038.3,2037.3,0.55874696]
[1773171698261,1.22648316,2038.4,2037.3,0.55874696]
[1773171698463,1.22639195,2038.5,2037.3,0.55874696]
[1773171698665,5.44226075,2038.8,2037.5,0.55764696]
[1773171698666,1.22627164,2038.7,2037.5,0.55764696]
[1773171699183,2.45527164,2038.7,2037.5,0.55764696]
[1773171699574,1.22625945,2038.8,2037.5,0.55764696]
[1773171699893,4.9057064,2038.9,2037.8,0.55764696]
[1773171699894,1.22715565,2038.9,2037.8,0.55764696]
[1773171700094,1.22717022,2038.9,2037.8,0.55764696]
[1773171700397,1.22715568,2038.9,2037.8,0.55764696]
[1773171700723,0.001,2038.9,2037.9,1.78439999]
[1773171701059,0.001,2038.9,2037.7,4.90735136]
[1773171701060,0.53841082,2038.9,2037.7,4.90735136]
[1773171701255,0.53841082,2038.9,2037.7,1.22687343]
[1773171701795,0.53741082,2038.8,2037.6,1.78453476]
[1773171702661,1.22627164,2038.7,2037.6,1.78453476]
[1773171702890,1.22627164,2038.7,2037.7,0.55764696]
[1773171703758,1.2271814,2038.9,2037.7,0.55764696]
[1773171703962,1.228,2039.3,2038.1,0.55764696]
[1773171703963,1.22591085,2039.3,2038.1,0.55764696]
[1773171704525,0.001,2038.7,2038.1,0.55764696]
[1773171704693,0.001,2038.7,2038.2,1.22657246]
[1773171705013,0.001,2038.7,2037.9,1.22675303]
[1773171706018,0.001,2038.7,2037.6,1.22693364]
[1773171706805,0.001,2038.7,2037.5,4.90883458]
[1773171707122,0.55914292,2038.5,2037.5,0.0011]
[1773171707494,0.55914292,2038.3,2037.5,0.0011]
[1773171707818,0.55914292,2038.2,2037.3,0.0011]
[1773171708024,0.55914292,2038.2,2036.5,4.91032415]
[1773171708025,0.55914292,2037.7,2036.4,1.22762322]
[1773171708321,1.78514292,2037.6,2036.3,1.22769336]
[1773171708700,1.219,2037.5,2036.3,1.22769336]
[1773171708915,1.22705408,2037.4,2036.4,0.57960286]
[1773171710695,2.96616174,2038.0,2036.4,0.57960286]
[1773171710922,4.90724719,2037.9,2036.6,0.55599078]
[1773171711121,5.46735801,2037.9,2036.6,0.55599078]
[1773171711521,1.219,2037.8,2036.6,0.55599078]
[1773171711724,1.77911082,2037.8,2036.6,0.55599078]
[1773171712241,0.56011082,2037.8,2036.6,0.55599078]
[1773171712535,4.90699922,2038.1,2036.5,1.22759636]
[1773171712536,1.22663264,2038.1,2036.9,0.55599078]
[1773171713053,1.22651228,2038.3,2036.9,0.55599078]
[1773171713211,1.22651228,2038.3,2037.1,0.55599078]
[1773171713415,0.56011082,2038.2,2037.1,0.55599078]
[1773171713619,2.96976707,2038.1,2037.0,1.22729504]
[1773171714420,1.22651228,2038.3,2037.1,0.55599078]
[1773171714621,1.22651228,2038.3,2037.2,0.55599078]
[1773171715145,1.22663264,2038.1,2036.9,4.90918016]
[1773171715343,1.78674346,2038.1,2036.9,4.90918016]
[1773171716255,2.96976707,2037.9,2036.4,4.19324339]
[1773171716554,2.40965625,2037.6,2036.5,5.46636055]
[1773171716758,2.40965625,2037.6,2036.3,4.91062659]
[1773171716759,2.96976707,2037.6,2036.3,4.91062659]
[1773171716914,0.56011082,2037.5,2036.3,5.46661737]
[1773171717119,2.44805408,2037.4,2036.3,5.46661737]
[1773171717348,2.44805408,2037.4,2036.4,0.55599078]
[1773171717855,2.44805408,2037.4,2036.5,0.0011]
[1773171718526,0.56011082,2037.3,2036.5,0.0011]
[1773171719648,1.22717455,2037.2,2036.5,0.0011]
[1773171719943,2.44917455,2037.2,2036.5,0.0011]
[1773171720324,1.222,2037.5,2036.5,0.55709078]
[1773171720535,1.78211082,2037.5,2036.5,0.0011]
[1773171721445,0.56011082,2037.4,2036.5,0.0011]
[1773171722322,4.19840035,2037.3,2036.5,0.0011]
[1773171722519,3.00922513,2037.3,2036.5,0.0011]
[1773171722715,1.222,2037.2,2036.5,0.0011]
[1773171724241,1.78740586,2037.0,2036.5,0.0011]
[1773171724434,0.56011082,2036.9,2036.5,0.0011]
[1773171724636,0.56011082,2036.9,2036.0,1.22897281]
[1773171724833,2.97128604,2036.8,2036.0,0.0011]
[1773171725140,0.56011082,2036.7,2036.0,0.0011]
[1773171725340,1.223,2036.6,2036.0,1.2289887]
[1773171725850,1.223,2036.6,2036.0,1.22898692]
[1773171726415,1.22759636,2036.5,2036.0,0.0011]
[1773171726619,6.13305453,2036.7,2036.0,0.0011]
[1773171727145,9.10434057,2036.7,2036.0,0.0011]
[1773171727318,0.56011082,2036.3,2035.3,1.22832014]
[1773171728046,6.13305453,2036.7,2035.4,0.55599078]
[1773171728047,1.224,2036.5,2035.4,0.55599078]
[1773171728352,5.47016535,2036.7,2035.5,1.22819945]
[1773171728525,4.91005453,2036.7,2035.6,0.55599078]
[1773171728729,1.22735529,2036.9,2035.6,0.55599078]
[1773171728934,1.224,2036.8,2035.8,0.55599078]
[1773171729130,5.46841836,2037.4,2035.9,0.55599078]
[1773171729335,2.45111431,2037.3,2035.9,0.55599078]
[1773171729652,1.78722513,2037.3,2035.9,0.55599078]
[1773171729842,1.224,2037.2,2035.9,0.55599078]
[1773171730153,1.78411082,2037.2,2035.9,0.55599078]
[1773171730848,2.45121895,2037.2,2036.1,0.55599078]
[1773171731244,2.45121895,2037.2,2036.2,0.55709078]
[1773171731442,0.56011082,2037.8,2036.4,0.55599078]
[1773171731644,1.78411082,2037.7,2036.4,0.55599078]
[1773171731839,2.97128604,2037.6,2036.4,0.55599078]
[1773171733257,1.22699386,2037.5,2036.5,1.22759636]
[1773171733628,1.78710468,2037.5,2036.5,1.22759636]
[1773171733940,0.56011082,2037.4,2036.5,1.22759636]
[1773171735352,1.225,2037.3,2036.4,0.55599078]
[1773171735761,1.22693364,2037.6,2036.4,0.55599078]
[1773171735954,2.45093364,2037.6,2036.4,0.55599078]
[1773171736656,1.224,2037.5,2036.4,0.55599078]
[1773171737041,1.78411082,2037.5,2036.4,0.55599078]
[1773171737241,1.22705408,2037.4,2036.5,1.22759636]
[1773171737559,2.45105408,2037.4,2036.5,1.22759636]
[1773171737934,1.22681322,2037.8,2036.7,0.55599078]
[1773171738563,1.78692404,2037.8,2036.7,0.55599078]
[1773171739336,1.78692404,2037.8,2036.8,1.22741555]
[1773171740662,1.223,2037.7,2036.8,1.22741555]
[1773171740833,1.78692404,2037.8,2036.8,1.80097472]
[1773171741035,1.223,2037.7,2036.9,0.57355917]
[1773171741346,1.223,2037.7,2037.0,1.22729504]
[1773171741555,2.44987453,2037.7,2037.0,1.22729504]
[1773171742673,2.44887453,2037.7,2037.0,1.22729504]